bitfinex/quotes_BTCUSD_20230115
["timestamp","ask_amount","ask_price","bid_price","bid_amount"]
[1673763679938,0.01,20766.0,20765.0,0.47512278]
[1673763680696,0.36619352,20767.0,20765.0,0.47512278]
[1673763680966,0.36619352,20767.0,20765.0,0.68926994]
[1673763681198,0.01,20766.0,20765.0,1.17684794]
[1673763682161,0.15432028,20766.0,20765.0,0.48112278]
[1673763682413,0.14432028,20766.0,20765.0,0.47512278]
[1673763683161,0.01,20766.0,20765.0,0.48112278]
[1673763683401,0.15432028,20766.0,20765.0,0.48112278]
[1673763684661,0.15432028,20766.0,20765.0,0.006]
[1673763687615,0.15432028,20766.0,20765.0,0.14998243]
[1673763687864,0.15432028,20766.0,20765.0,0.006]
[1673763689429,0.15432028,20766.0,20765.0,0.56285017]
[1673763691178,0.01,20766.0,20765.0,0.56285017]
[1673763691429,0.15432028,20766.0,20765.0,0.56285017]
[1673763691674,0.01,20766.0,20765.0,0.56285017]
[1673763692161,0.01,20766.0,20765.0,0.75803767]
[1673763692407,0.01,20766.0,20765.0,1.07918167]
[1673763692891,0.01,20766.0,20765.0,0.75803767]
[1673763693652,0.01,20766.0,20765.0,1.07918167]
[1673763693871,0.01,20766.0,20765.0,1.56076067]
[1673763694169,0.01,20766.0,20765.0,1.23961667]
[1673763695148,0.01,20766.0,20765.0,1.56076067]
[1673763695877,0.01,20766.0,20765.0,1.23961667]
[1673763697915,0.01,20766.0,20765.0,1.56076067]
[1673763698176,0.01,20766.0,20765.0,1.23961667]
[1673763701663,0.01,20766.0,20765.0,1.56076067]
[1673763703411,0.01,20766.0,20765.0,1.36557317]
[1673763703926,0.01,20766.0,20765.0,1.04442917]
[1673763704975,0.01,20766.0,20765.0,1.36557317]
[1673763705234,0.01,20766.0,20765.0,1.04442917]
[1673763706456,0.01,20766.0,20765.0,1.36557317]
[1673763706958,0.01,20766.0,20765.0,1.26505333]
[1673763708247,0.15432028,20766.0,20765.0,1.26505333]
[1673763709370,0.15432028,20766.0,20765.0,0.56285017]
[1673763709816,0.18193393,20766.0,20765.0,0.56285017]
[1673763712602,0.03761365,20766.0,20765.0,1.18807816]
[1673763712848,0.03761365,20766.0,20765.0,1.50922216]
[1673763713090,0.03761365,20766.0,20765.0,2.26848766]
[1673763713328,0.03761365,20766.0,20765.0,2.75006666]
[1673763713809,0.02761365,20766.0,20765.0,2.31822786]
[1673763714053,0.02861365,20766.0,20765.0,2.40122786]
[1673763714815,0.02861365,20766.0,20765.0,2.06780116]
[1673763715070,0.02861365,20766.0,20765.0,1.92415217]
[1673763715323,0.02861365,20766.0,20765.0,2.06780116]
[1673763715555,0.02861365,20766.0,20765.0,1.92415217]
[1673763718413,0.02861365,20766.0,20765.0,1.60300817]
[1673763718645,0.02861365,20766.0,20765.0,1.12142917]
[1673763718868,0.02861365,20766.0,20765.0,0.564579]
[1673763719091,0.19806323,20766.0,20765.0,0.083]
[1673763719309,0.41413917,20766.0,20765.0,0.083]
[1673763719865,0.26981889,20766.0,20765.0,0.083]
[1673763720061,1.25878532,20766.0,20765.0,0.08292292]
[1673763720283,1.2350349,20766.0,20761.0,0.14364899]
[1673763720504,0.14412684,20764.0,20761.0,0.34053798]
[1673763720728,0.78331904,20764.0,20761.0,0.69287173]
[1673763720949,0.01915,20762.0,20760.0,0.35908841]
[1673763721187,0.01915,20762.0,20760.0,0.14364899]
[1673763721188,0.1767342,20762.0,20760.0,0.14364899]
[1673763721413,0.32086104,20762.0,20759.0,0.63701291]
[1673763721642,0.32086104,20762.0,20759.0,0.14364899]
[1673763721872,0.00586042,20761.0,20759.0,0.14364899]
[1673763722794,0.48753342,20761.0,20759.0,0.14364899]
[1673763723013,0.48753342,20761.0,20759.0,0.90903744]
[1673763723244,0.48753342,20761.0,20760.0,0.56394502]
[1673763723245,0.001,20761.0,20760.0,0.56394502]
[1673763723984,0.27992413,20763.0,20760.0,0.56394502]
[1673763724209,0.001,20761.0,20760.0,0.64094502]
[1673763724436,0.001,20761.0,20760.0,0.85211838]
[1673763724922,0.001,20761.0,20760.0,1.17326238]
[1673763725147,0.001,20761.0,20760.0,0.85211838]
[1673763726259,0.001,20761.0,20760.0,0.64094502]
[1673763728998,0.001,20761.0,20760.0,0.96208902]
[1673763729975,0.001,20761.0,20760.0,0.64094502]
[1673763730178,0.001,20761.0,20760.0,0.96208902]
[1673763730408,0.001,20761.0,20760.0,0.64094502]
[1673763731079,0.001,20761.0,20760.0,0.93219106]
[1673763731312,0.001,20761.0,20760.0,1.25333506]
[1673763731513,0.001,20761.0,20760.0,0.96208902]
[1673763732894,0.001,20761.0,20760.0,0.64094502]
[1673763734587,0.001,20761.0,20760.0,0.077]
[1673763734588,0.00740773,20761.0,20760.0,0.077]
[1673763734836,0.00740773,20761.0,20760.0,0.07709]
[1673763735662,0.001,20761.0,20760.0,0.07709]
[1673763739290,0.001,20761.0,20760.0,0.23629279]
[1673763740054,0.001,20761.0,20760.0,0.55743679]
[1673763740803,0.00091589,20761.0,20760.0,0.55743679]
[1673763741059,0.00091589,20761.0,20760.0,1.17726762]
[1673763741571,0.00091589,20761.0,20760.0,1.17711514]
[1673763743404,0.00091589,20761.0,20760.0,1.65881014]
[1673763748197,0.00091589,20761.0,20760.0,2.14050514]
[1673763748717,0.00091589,20761.0,20760.0,1.98130235]
[1673763749627,0.00091589,20761.0,20760.0,1.98121235]
[1673763752610,0.00091589,20761.0,20760.0,1.17837335]
[1673763753111,0.00091589,20761.0,20760.0,1.49951735]
[1673763757089,0.00091589,20761.0,20760.0,1.64316634]
[1673763759339,0.00091589,20761.0,20760.0,3.46071519]
[1673763759829,0.00091589,20761.0,20760.0,3.3170662]
[1673763760327,0.00091589,20761.0,20760.0,3.46151398]
[1673763760582,0.00091589,20761.0,20760.0,2.82294252]
[1673763761810,0.00091589,20761.0,20760.0,3.46151627]
[1673763764563,0.00091589,20761.0,20760.0,3.31706849]
[1673763765063,0.00091589,20761.0,20760.0,3.60436647]
[1673763765820,0.00091589,20761.0,20760.0,3.31706849]
[1673763766330,0.00091589,20761.0,20760.0,3.79876349]
[1673763768658,0.00091589,20761.0,20760.0,3.9432072]
[1673763769167,0.00091589,20761.0,20760.0,3.79876349]
[1673763771437,0.00091589,20761.0,20760.0,4.08606147]
[1673763771688,0.15754554,20763.0,20760.0,4.08606147]
[1673763771937,0.15262684,20763.0,20761.0,0.84098003]
[1673763772185,0.15262684,20763.0,20761.0,1.10792603]
[1673763773209,0.15362684,20763.0,20761.0,1.18492603]
[1673763773950,0.0095,20763.0,20762.0,0.321144]
[1673763774163,0.0095,20763.0,20762.0,0.29721544]
[1673763774408,0.0095,20763.0,20762.0,0.8918111]
[1673763774886,0.15362684,20763.0,20762.0,0.8918111]
[1673763775139,0.15262684,20763.0,20762.0,0.8918111]
[1673763775392,0.0095,20763.0,20762.0,0.9698111]
[1673763775650,0.0095,20763.0,20762.0,1.2909551]
[1673763776407,0.15362684,20763.0,20762.0,1.2909551]
[1673763776656,0.15362684,20763.0,20762.0,0.9698111]
[1673763777911,0.17277684,20763.0,20762.0,0.9698111]
[1673763778155,0.02865,20763.0,20762.0,0.9698111]
[1673763778400,0.17277684,20763.0,20762.0,0.9698111]
[1673763779409,0.02865,20763.0,20762.0,1.2909551]
[1673763779660,0.02865,20763.0,20762.0,0.9698111]
[1673763780150,0.17277684,20763.0,20762.0,1.2909551]
[1673763780977,0.15362684,20763.0,20762.0,1.2909551]
[1673763781230,0.0095,20763.0,20762.0,1.2909551]
[1673763781493,0.15362684,20763.0,20762.0,0.9698111]
[1673763781769,0.15362684,20763.0,20762.0,0.67259566]
[1673763784336,0.17277684,20763.0,20762.0,0.67259566]
[1673763786193,0.17277684,20763.0,20762.0,1.47538866]
[1673763786696,0.17277684,20763.0,20762.0,1.15424466]
[1673763787508,0.17277684,20763.0,20762.0,1.47538866]
[1673763788823,0.17277684,20763.0,20762.0,1.15424466]
[1673763789365,0.17277684,20763.0,20762.0,0.67259566]
[1673763789627,0.17277684,20763.0,20762.0,0.078]
[1673763789628,0.66812425,20763.0,20762.0,0.078]
[1673763789907,0.81206055,20763.0,20762.0,0.078]
[1673763790156,0.88434386,20763.0,20762.0,0.078]
[1673763791200,0.45193399,20763.0,20762.0,0.078]
[1673763792421,0.66855709,20763.0,20762.0,0.078]
[1673763792664,0.45193399,20763.0,20762.0,0.078]
[1673763793236,0.6685374,20763.0,20762.0,0.078]
[1673763795062,0.001,20763.0,20762.0,1.18991278]
[1673763795331,0.00089785,20763.0,20762.0,4.5133355]
[1673763795587,0.00089785,20763.0,20762.0,4.15421302]
[1673763795860,0.00089785,20763.0,20762.0,4.5133355]
[1673763796590,0.00089785,20763.0,20762.0,4.15421302]
[1673763796595,0.00089785,20763.0,20762.0,4.37061982]
[1673763797106,0.00089785,20763.0,20762.0,3.94478102]
[1673763797645,0.00089785,20763.0,20762.0,3.9012488]
[1673763798116,0.00089785,20763.0,20762.0,4.04396448]
[1673763798642,0.00089785,20763.0,20762.0,3.90114521]
[1673763798893,0.00089785,20763.0,20762.0,4.08336105]
[1673763799895,0.00089785,20763.0,20762.0,3.79606307]
[1673763800200,0.00089785,20763.0,20762.0,3.47530641]
[1673763800658,0.00089785,20763.0,20762.0,3.90114521]
[1673763800906,0.00089785,20763.0,20762.0,3.61384723]
[1673763801394,0.00089785,20763.0,20762.0,4.49924546]
[1673763801644,1e-08,20763.0,20762.0,3.93027658]
[1673763803903,1e-08,20763.0,20762.0,2.32881336]
[1673763804121,1e-08,20763.0,20762.0,2.96798866]
[1673763804371,1e-08,20763.0,20762.0,2.96764587]
[1673763804629,1e-08,20763.0,20762.0,2.32847057]
[1673763804879,1e-08,20763.0,20762.0,2.96764734]
[1673763805851,1e-08,20763.0,20762.0,3.93101066]
[1673763806102,1e-08,20763.0,20762.0,3.93101151]
[1673763806351,1e-08,20763.0,20762.0,3.78684361]
[1673763806631,1e-08,20763.0,20762.0,4.35677495]
[1673763807133,1e-08,20763.0,20762.0,4.35677711]
[1673763807390,1e-08,20763.0,20762.0,4.21268457]
[1673763808418,1e-08,20763.0,20762.0,4.35679459]
[1673763808682,1e-08,20763.0,20762.0,3.93095579]
[1673763809181,1e-08,20763.0,20762.0,2.96758946]
[1673763809666,1e-08,20763.0,20762.0,2.32841269]
[1673763811126,1e-08,20763.0,20762.0,1.51400923]
[1673763814647,1e-08,20763.0,20762.0,1.50620923]
[1673763819855,1e-08,20763.0,20762.0,3.32478058]
[1673763820077,1e-08,20763.0,20762.0,3.18067056]
[1673763820321,1e-08,20763.0,20762.0,3.46796854]
[1673763821335,1e-08,20763.0,20762.0,3.18067056]
[1673763821580,1e-08,20763.0,20762.0,4.37100903]
[1673763821838,1e-08,20763.0,20762.0,4.67100903]
[1673763822085,0.02761365,20766.0,20763.0,0.10005999]
[1673763822346,0.02761365,20766.0,20764.0,2.22929292]
[1673763822584,0.02761365,20766.0,20765.0,0.78739409]
[1673763822837,0.02761365,20766.0,20765.0,1.75055209]
[1673763823085,0.02761365,20766.0,20765.0,1.65055209]
[1673763823826,0.02761365,20766.0,20765.0,2.26023902]
[1673763824323,0.02761365,20766.0,20765.0,2.36623902]
[1673763824567,0.02761365,20766.0,20765.0,2.26023902]
[1673763824827,0.02761365,20766.0,20765.0,2.36623902]
[1673763831920,0.48983851,20770.0,20765.0,1.90055621]
[1673763832172,0.0085,20769.0,20766.0,1.11301991]
[1673763832426,0.0085,20769.0,20767.0,0.802677]
[1673763832675,0.0085,20769.0,20767.0,0.481533]
[1673763833153,0.0035,20769.0,20767.0,0.481533]
[1673763833410,0.16627327,20770.0,20768.0,0.1670742]
[1673763834168,0.16627327,20770.0,20767.0,0.481533]
[1673763834427,0.14929593,20769.0,20766.0,1.11227178]
[1673763834694,0.37908616,20769.0,20768.0,0.054]
[1673763834953,0.36576106,20769.0,20768.0,0.054]
[1673763835202,0.37426106,20769.0,20768.0,0.054]
[1673763835708,0.37426106,20769.0,20766.0,1.20427178]
[1673763835971,0.37426106,20769.0,20766.0,1.11227178]
[1673763836226,0.37426106,20769.0,20768.0,0.093]
[1673763836487,0.37426106,20769.0,20766.0,1.11227178]
[1673763836488,0.23000196,20769.0,20766.0,1.11227178]
[1673763836746,0.15009175,20768.0,20766.0,1.20427178]
[1673763837027,0.15009175,20768.0,20766.0,1.11227178]
[1673763837521,0.15009175,20768.0,20767.0,0.15938338]
[1673763838764,0.15109175,20768.0,20767.0,0.15938338]
[1673763839023,0.15009175,20768.0,20767.0,0.15938338]
[1673763839282,0.15009175,20768.0,20767.0,0.21838338]
[1673763840933,0.15009175,20768.0,20767.0,0.059]
[1673763841442,0.31617595,20768.0,20767.0,0.059]
[1673763841716,1.91220437,20768.0,20767.0,0.059]
[1673763842039,1.83474414,20768.0,20767.0,0.059]
[1673763843044,1.83474414,20768.0,20763.0,0.54527701]
[1673763843304,0.14428155,20766.0,20763.0,0.54527701]
[1673763843545,0.30186575,20766.0,20763.0,0.54527701]
[1673763844053,0.14428155,20766.0,20763.0,0.54527701]
[1673763844304,0.14528155,20766.0,20763.0,0.62827701]
[1673763844578,0.14528155,20766.0,20763.0,0.08305999]
[1673763844805,0.00608104,20765.0,20763.0,0.08305999]
[1673763845773,0.00608104,20765.0,20763.0,5.999e-05]
[1673763846019,0.00708104,20765.0,20763.0,0.08305999]
[1673763849180,0.00708104,20765.0,20763.0,0.32998843]
[1673763849181,0.02568823,20764.0,20763.0,0.32998843]
[1673763849423,0.02568823,20764.0,20763.0,0.95561755]
[1673763849715,0.02568823,20764.0,20763.0,0.81161343]
[1673763850239,0.02568823,20764.0,20763.0,1.04975743]
[1673763850486,0.02568823,20764.0,20763.0,0.72861343]
[1673763850750,0.02668823,20764.0,20763.0,0.56468499]
[1673763851041,0.001,20764.0,20763.0,0.56468499]
[1673763851525,0.001,20764.0,20763.0,1.19726193]
[1673763851772,0.001,20764.0,20763.0,1.51840593]
[1673763852017,0.001,20764.0,20763.0,1.91419852]
[1673763853239,0.001,20764.0,20763.0,2.05820264]
[1673763855440,0.00093991,20764.0,20763.0,2.05820264]
[1673763856186,0.00093991,20764.0,20763.0,2.27420882]
[1673763856439,0.00093991,20764.0,20763.0,2.05820264]
[1673763858552,0.00093991,20764.0,20763.0,1.4256257]
[1673763858796,0.00093991,20764.0,20763.0,3.2414445]
[1673763859059,0.00093991,20764.0,20763.0,3.7230695]
[1673763859311,0.00093991,20764.0,20763.0,2.75987159]
[1673763859569,0.00093991,20764.0,20763.0,4.35969626]
[1673763859821,0.00093991,20764.0,20763.0,4.35988021]
[1673763860784,0.00093991,20764.0,20763.0,4.21569214]
[1673763861028,0.00093991,20764.0,20763.0,4.35987187]
[1673763861239,0.00093991,20764.0,20763.0,4.21569214]
[1673763861498,0.00093991,20764.0,20763.0,3.50739681]
[1673763861743,0.00093991,20764.0,20763.0,2.54406125]
[1673763861744,1e-08,20764.0,20763.0,2.54406125]
[1673763862742,1e-08,20764.0,20763.0,2.76006743]
[1673763862988,1e-08,20764.0,20763.0,4.35935018]
[1673763864461,1e-08,20764.0,20763.0,3.72273547]
[1673763865249,1e-08,20764.0,20763.0,3.57853551]
[1673763867012,1e-08,20764.0,20763.0,3.86654375]
[1673763869030,1e-08,20764.0,20763.0,3.86691245]
[1673763869286,1e-08,20764.0,20763.0,3.65053757]
[1673763869768,1e-08,20764.0,20763.0,3.86691967]
[1673763870534,1e-08,20764.0,20763.0,3.65042861]
[1673763870791,1e-08,20764.0,20763.0,3.86683934]
[1673763872407,1e-08,20764.0,20763.0,3.65042861]
[1673763872904,1e-08,20764.0,20763.0,4.00955109]
[1673763878430,1e-08,20764.0,20763.0,3.72154285]
[1673763878655,1e-08,20764.0,20763.0,4.01018876]
[1673763882576,1e-08,20764.0,20763.0,3.72154285]
[1673763883938,1e-08,20764.0,20763.0,4.01017697]
[1673763885443,1e-08,20764.0,20763.0,3.72154285]
[1673763891844,0.0085,20766.0,20765.0,0.07676999]
[1673763892093,0.0085,20767.0,20765.0,0.72331013]
[1673763892354,0.0085,20767.0,20766.0,0.321092]
[1673763892619,0.0085,20767.0,20765.0,0.91368119]
[1673763892878,0.15278155,20767.0,20765.0,0.91368119]
[1673763893125,0.0085,20767.0,20765.0,0.91368119]
[1673763893391,0.16178155,20767.0,20765.0,0.91368119]
[1673763893889,0.16178155,20767.0,20766.0,0.22024127]
[1673763894138,0.0175,20767.0,20766.0,0.22024127]
[1673763894396,0.16178155,20767.0,20766.0,0.22024127]
[1673763894646,0.0175,20767.0,20766.0,0.22024127]
[1673763895162,0.16178155,20767.0,20766.0,0.22024127]
[1673763895422,0.0175,20767.0,20766.0,1.97408494]
[1673763895673,0.009,20767.0,20766.0,3.96733912]
[1673763895927,0.009,20767.0,20766.0,4.25609005]
[1673763896179,0.009,20767.0,20766.0,4.03952686]
[1673763896435,0.50440811,20769.0,20766.0,4.46351724]
[1673763896696,0.36012656,20769.0,20767.0,2.35089094]
[1673763896953,0.36012656,20769.0,20768.0,0.80262]
[1673763896954,0.50440811,20769.0,20768.0,0.80262]
[1673763897170,0.51290811,20769.0,20768.0,0.48151]
[1673763897397,0.36862656,20769.0,20768.0,1.05838558]
[1673763897651,0.36862656,20769.0,20768.0,1.12954912]
[1673763898181,0.36862656,20769.0,20768.0,1.45069312]
[1673763898443,0.36962656,20769.0,20768.0,1.12954912]
[1673763898964,0.36862656,20769.0,20768.0,1.93220312]
[1673763899221,0.36962656,20769.0,20768.0,2.01620312]
[1673763899495,0.36112656,20769.0,20768.0,2.01620312]
[1673763899760,0.36112656,20769.0,20768.0,1.69505912]
[1673763900260,0.36112656,20769.0,20768.0,1.62389558]
[1673763900523,0.01593851,20770.0,20768.0,3.37683803]
[1673763900781,0.01593851,20770.0,20769.0,1.21715269]
[1673763901042,0.01593851,20770.0,20769.0,3.67808639]
[1673763901294,0.01593851,20770.0,20769.0,2.12156471]
[1673763901551,0.01536951,20770.0,20769.0,2.19668467]
[1673763902312,0.01536951,20770.0,20769.0,2.28968467]
[1673763902578,0.01536951,20770.0,20769.0,2.19668467]
[1673763902824,0.01536951,20770.0,20769.0,3.98975329]
[1673763903075,0.01536951,20770.0,20769.0,2.28956032]
[1673763903847,0.01536951,20770.0,20769.0,2.14548715]
[1673763904321,0.01536951,20770.0,20769.0,2.28956032]
[1673763904851,0.01536951,20770.0,20769.0,2.14548715]
[1673763907364,0.01536951,20770.0,20769.0,1.85408234]
[1673763907582,0.01536951,20770.0,20769.0,1.37259634]
[1673763908337,0.01536951,20770.0,20769.0,1.27959634]
[1673763908836,0.01636951,20770.0,20769.0,1.36459634]
[1673763909099,0.01636951,20770.0,20769.0,1.66223091]
[1673763909854,0.01636951,20770.0,20769.0,1.36459634]
[1673763911340,0.01636951,20770.0,20769.0,1.15011334]
[1673763912101,0.01636951,20770.0,20769.0,1.47125734]
[1673763914121,0.01636951,20770.0,20769.0,0.98977134]
[1673763914695,0.01636951,20770.0,20769.0,0.66862734]
[1673763917410,0.01636951,20770.0,20769.0,1.15011334]
[1673763917924,0.01636951,20770.0,20769.0,1.39746058]
[1673763918173,0.01636951,20770.0,20769.0,1.71860458]
[1673763920823,0.01636951,20770.0,20769.0,2.20009058]
[1673763921371,0.01636951,20770.0,20769.0,1.61646324]
[1673763921835,0.01615089,20772.0,20769.0,1.61646324]
[1673763922061,0.01615089,20772.0,20770.0,0.93141227]
[1673763922311,0.01615089,20772.0,20771.0,0.802584]
[1673763922585,0.01615089,20772.0,20771.0,0.48144]
[1673763923102,0.01615089,20772.0,20771.0,1.01163668]
[1673763923368,0.01615089,20772.0,20771.0,1.33278068]
[1673763923657,0.01615089,20772.0,20771.0,1.34598392]
[1673763923890,0.01615089,20772.0,20771.0,1.66712792]
[1673763924140,0.01615089,20772.0,20771.0,1.34598392]
[1673763925403,0.01615089,20772.0,20771.0,1.66712792]
[1673763925918,0.01615089,20772.0,20771.0,1.34598392]
[1673763927896,0.01615089,20772.0,20771.0,2.14856792]
[1673763928666,0.01615089,20772.0,20771.0,1.82742392]
[1673763928928,0.01615089,20772.0,20771.0,2.14856792]
[1673763929695,0.01615089,20772.0,20771.0,1.90122068]
[1673763931649,0.01615089,20772.0,20771.0,2.32668868]
[1673763932136,0.01615089,20772.0,20771.0,1.90122068]
[1673763935185,0.01615089,20772.0,20771.0,2.04529385]
[1673763935646,0.01615089,20772.0,20771.0,1.94056517]
[1673763935886,0.01615089,20772.0,20771.0,2.54359125]
[1673763936143,0.01615089,20772.0,20771.0,3.16175569]
[1673763936398,0.01615089,20772.0,20771.0,4.18486039]
[1673763936643,0.01615089,20772.0,20771.0,4.04078722]
[1673763936913,0.01615089,20772.0,20771.0,4.4731006]
[1673763937925,0.01615089,20772.0,20771.0,5.02622473]
[1673763938177,0.01615089,20772.0,20771.0,4.25681575]
[1673763938411,0.01615089,20772.0,20771.0,4.80478458]
[1673763938666,0.01615089,20772.0,20771.0,5.09264941]
[1673763939166,0.01615089,20772.0,20771.0,4.73352693]
[1673763939418,0.01615089,20772.0,20771.0,5.4516269]
[1673763940170,0.01615089,20772.0,20771.0,4.86243453]
[1673763940438,0.01615089,20772.0,20771.0,4.95443453]
[1673763940688,0.01615089,20772.0,20771.0,5.31355701]
[1673763940936,0.01615089,20772.0,20771.0,5.51426632]
[1673763941455,0.01615089,20772.0,20771.0,5.31355701]
[1673763941702,0.01615089,20772.0,20771.0,5.86409577]
[1673763941958,0.21626187,20777.0,20772.0,0.1]
[1673763942217,0.21626187,20777.0,20773.0,0.89605171]
[1673763942488,0.21626187,20777.0,20773.0,1.21856649]
[1673763943247,0.43252373,20777.0,20773.0,1.21856649]
[1673763943492,0.47514772,20778.0,20774.0,0.52766721]
[1673763943773,0.0085,20777.0,20774.0,1.44990587]
[1673763944026,0.0085,20777.0,20774.0,1.25917992]
[1673763944759,0.02765,20777.0,20774.0,0.78281392]
[1673763945045,0.2438598,20777.0,20774.0,0.77781392]
[1673763946269,0.2438598,20777.0,20774.0,0.52766721]
[1673763946766,0.2247098,20777.0,20775.0,0.48255723]
[1673763949046,0.0085,20777.0,20775.0,0.48255723]
[1673763949544,0.0085,20778.0,20775.0,0.6526671]
[1673763950531,0.0085,20778.0,20775.0,1.75059727]
[1673763950778,0.0085,20778.0,20775.0,1.55987132]
[1673763951786,0.0085,20778.0,20776.0,0.53817383]
[1673763952073,0.0085,20778.0,20777.0,0.16204879]
[1673763952629,0.59083638,20779.0,20777.0,0.16204879]
[1673763953102,0.59083638,20779.0,20777.0,0.16704879]
[1673763953368,0.01447026,20779.0,20777.0,0.16204879]
[1673763953637,0.01447026,20779.0,20778.0,0.06972093]
[1673763953924,0.02297026,20779.0,20778.0,0.06972093]
[1673763954384,0.02297026,20779.0,20778.0,0.63879143]
[1673763954889,0.02297026,20779.0,20778.0,0.64579143]
[1673763956130,0.02297026,20779.0,20778.0,0.63879143]
[1673763956385,0.02297026,20779.0,20778.0,0.64379143]
[1673763956642,0.01447026,20779.0,20778.0,0.63879143]
[1673763957150,0.01447026,20779.0,20778.0,1.12006943]
[1673763957659,0.01447026,20779.0,20778.0,1.21306943]
[1673763957913,0.01447026,20779.0,20778.0,1.12006943]
[1673763958161,0.01447026,20779.0,20778.0,1.21206943]
[1673763959150,0.01447026,20779.0,20778.0,1.53321343]
[1673763959390,0.01447026,20779.0,20778.0,1.21206943]
[1673763959631,0.01447026,20779.0,20778.0,1.53321343]
[1673763959879,0.01447026,20779.0,20778.0,1.21206943]
[1673763960635,0.01447026,20779.0,20778.0,1.44121343]
[1673763960883,0.01447026,20779.0,20778.0,1.21206943]
[1673763962123,0.01447026,20779.0,20778.0,2.01449143]
[1673763962363,0.01447026,20779.0,20778.0,1.90755443]
[1673763962616,0.01447026,20779.0,20778.0,2.11921065]
[1673763962861,0.01447026,20779.0,20778.0,2.01449143]
[1673763963106,0.00447026,20779.0,20778.0,1.69334743]
[1673763963365,0.00447026,20779.0,20778.0,2.01449143]
[1673763963608,0.00447026,20779.0,20778.0,1.69334743]
[1673763964390,0.00447026,20779.0,20778.0,1.21206943]
[1673763964635,0.00447026,20779.0,20778.0,0.73079143]
[1673763965706,0.00447026,20779.0,20778.0,1.1423485]
[1673763966226,0.00447026,20779.0,20778.0,1.6236265]
[1673763966491,0.00447026,20779.0,20778.0,1.1423485]
[1673763967774,0.00447026,20779.0,20778.0,1.054556]
[1673763968051,0.00447026,20779.0,20778.0,1.4757]
[1673763968283,0.00447026,20779.0,20778.0,1.51049747]
[1673763968544,0.01595732,20781.0,20778.0,2.60428833]
[1673763968787,0.01595732,20781.0,20779.0,1.21726191]
[1673763969075,0.01595732,20781.0,20780.0,2.66786791]
[1673763970804,0.01595732,20781.0,20780.0,2.75986791]
[1673763971051,0.01595732,20781.0,20780.0,2.92997778]
[1673763973716,0.00042732,20781.0,20780.0,2.92997778]
[1673763974271,0.00042732,20781.0,20780.0,3.22997778]
[1673763974806,0.00042732,20781.0,20780.0,3.37354424]
[1673763975320,0.14397454,20782.0,20781.0,0.10061564]
[1673763975594,0.64771315,20783.0,20782.0,0.1]
[1673763975871,0.64771315,20783.0,20782.0,2.71472205]
[1673763976139,0.64771315,20783.0,20782.0,2.8579877]
[1673763976391,0.64771315,20783.0,20782.0,2.71472205]
[1673763976963,0.64771315,20783.0,20782.0,2.50672205]
[1673763977231,0.64771315,20783.0,20782.0,1.51024247]
[1673763977494,0.64771315,20783.0,20782.0,0.092]
[1673763977740,0.64771315,20783.0,20782.0,0.08764673]
[1673763978731,0.64771315,20783.0,20782.0,0.72253424]
[1673763979238,0.64771315,20783.0,20782.0,0.63488751]
[1673763979568,0.64971315,20783.0,20782.0,1.41758614]
[1673763979765,0.64771315,20783.0,20782.0,1.19088363]
[1673763980025,0.64971315,20783.0,20782.0,2.48740468]
[1673763980275,0.64771315,20783.0,20782.0,2.71440468]
[1673763980531,0.64971315,20783.0,20782.0,2.48740468]
[1673763980801,0.64771315,20783.0,20782.0,2.90344068]
[1673763981041,0.64971315,20783.0,20782.0,2.78740468]
[1673763981284,0.64771315,20783.0,20782.0,2.71440468]
[1673763981550,0.64971315,20783.0,20782.0,2.78740468]
[1673763981801,0.64971315,20783.0,20782.0,2.55269553]
[1673763984808,0.002,20783.0,20782.0,2.55269553]
[1673763986289,0.002,20783.0,20782.0,2.06222932]
[1673763986791,0.002,20783.0,20782.0,2.48740468]
[1673763987532,0.002,20783.0,20782.0,3.15064606]
[1673763987780,0.002,20783.0,20782.0,2.48740468]
[1673763989278,0.002,20783.0,20782.0,2.06222932]
[1673763990288,0.002,20783.0,20782.0,2.67214926]
[1673763990792,0.002,20783.0,20782.0,2.06222932]
[1673763991030,0.002,20783.0,20782.0,2.65073577]
[1673763991277,0.002,20783.0,20782.0,2.58894767]
[1673763991787,0.002,20783.0,20782.0,2.58755862]
[1673763993291,0.002,20783.0,20782.0,3.01273398]
[1673763994022,0.002,20783.0,20782.0,2.64817925]
[1673763996839,0.002,20783.0,20782.0,2.06084027]
[1673763997375,0.002,20783.0,20782.0,2.59104481]
[1673763998657,0.01595732,20786.0,20783.0,0.66900716]
[1673763998893,0.01595732,20786.0,20782.0,0.073]
[1673763999147,0.0085,20785.0,20782.0,0.073]
[1673764000199,0.0085,20785.0,20783.0,0.083]
[1673764000447,0.0035,20785.0,20783.0,0.13554551]
[1673764000695,0.001,20785.0,20783.0,0.13554551]
[1673764001178,0.97818332,20786.0,20783.0,0.13554551]
[1673764001434,0.97816332,20786.0,20783.0,0.13554551]
[1673764002252,0.001,20785.0,20783.0,0.21754551]
[1673764002463,0.0085,20785.0,20783.0,0.13554551]
[1673764002715,0.0085,20785.0,20783.0,0.21854551]
[1673764002957,0.0085,20785.0,20784.0,0.08648313]
[1673764003729,0.0095,20785.0,20784.0,0.08648313]
[1673764003985,0.0085,20785.0,20784.0,0.08648313]
[1673764004241,0.0095,20785.0,20784.0,0.16948313]
[1673764004491,0.0095,20785.0,20784.0,0.15971]
[1673764005483,0.0095,20785.0,20784.0,0.083]
[1673764008318,0.15339937,20785.0,20784.0,0.083]
[1673764009961,0.0095,20785.0,20784.0,0.083]
[1673764010116,0.15339937,20785.0,20784.0,0.083]
[1673764012764,0.0095,20785.0,20784.0,0.083]
[1673764012984,0.15339937,20785.0,20784.0,0.083]
[1673764013266,0.0095,20785.0,20784.0,0.083]
[1673764016294,0.15339937,20785.0,20784.0,0.083]
[1673764016509,0.0095,20785.0,20784.0,0.083]
[1673764017247,0.15339937,20785.0,20784.0,0.083]
[1673764017500,0.0095,20785.0,20784.0,0.083]
[1673764019050,0.15339937,20785.0,20784.0,0.083]
[1673764019793,0.0095,20785.0,20784.0,0.083]
[1673764020301,0.15339937,20785.0,20784.0,0.083]
[1673764020817,0.0095,20785.0,20784.0,0.27565302]
[1673764021064,0.15339937,20785.0,20784.0,0.083]
[1673764021568,0.0095,20785.0,20784.0,0.083]
[1673764021791,0.15339937,20785.0,20784.0,0.083]
[1673764022774,0.36925923,20785.0,20784.0,0.083]
[1673764023028,0.15339937,20785.0,20784.0,0.083]
[1673764025053,0.36925923,20785.0,20784.0,0.083]
[1673764025542,0.15339937,20785.0,20784.0,0.083]
[1673764027066,0.36925923,20785.0,20784.0,0.083]